bitfinex/quotes_ETHUSD_20250131
["timestamp","ask_amount","ask_price","bid_price","bid_amount"]
[1738356795506,0.219,3323.7,3323.5,0.04236324]
[1738356795746,0.7982,3324.0,3323.9,3.00851]
[1738356795913,0.219,3324.1,3323.9,3.05039872]
[1738356796244,1.0426,3324.4,3323.9,0.04188872]
[1738356796409,3.55842,3324.0,3323.9,0.04188872]
[1738356796616,0.7552,3323.3,3322.5,0.7612]
[1738356796939,3.00939,3323.0,3322.4,0.1647821]
[1738356797147,0.24964292,3322.9,3322.4,0.1647821]
[1738356797343,0.24964292,3322.9,3322.4,3.1746421]
[1738356797344,0.219,3322.9,3322.4,3.1746421]
[1738356797509,0.219,3322.9,3322.4,0.1647821]
[1738356797837,3.22842,3322.9,3322.4,0.1647821]
[1738356798049,0.219,3322.9,3322.6,3.00962]
[1738356798343,0.03064292,3322.8,3322.6,3.00962]
[1738356798546,0.03064292,3322.8,3322.4,3.1746121]
[1738356798696,0.219,3322.9,3322.4,3.1746221]
[1738356798892,0.219,3322.9,3322.6,3.00963]
[1738356799152,0.219,3322.9,3322.8,3.00951]
[1738356799294,0.219,3322.9,3322.4,0.1647821]
[1738356799492,0.219,3322.9,3322.7,3.00954]
[1738356799742,0.7552,3323.1,3322.8,3.00951]
[1738356799910,0.7892,3322.8,3322.4,3.1746421]
[1738356800110,0.7892,3322.8,3322.4,0.1647821]
[1738356800441,0.81984292,3322.8,3322.4,0.1647821]
[1738356800635,3.0096,3322.7,3322.4,0.1647821]
[1738356800944,0.03064292,3322.6,3322.4,0.1647821]
[1738356801153,3.00978,3322.5,3322.4,0.1647821]
[1738356801449,4.32018,3322.5,3322.4,0.1647821]
[1738356802139,3.77018,3322.5,3322.4,0.1647821]
[1738356802495,7.33518,3322.5,3322.4,0.1647821]
[1738356802906,7.33518,3322.5,3322.4,2.1e-06]
[1738356803108,8.10862141,3322.5,3322.4,2.1e-06]
[1738356803447,6.56755,3322.2,3322.1,0.005]
[1738356803596,6.84765,3322.2,3322.1,0.005]
[1738356803798,0.2801,3321.3,3320.7,2.948561]
[1738356804044,1.1374465,3321.2,3320.2,3.0]
[1738356804250,0.219,3321.2,3321.1,3.01105]
[1738356804598,0.219,3321.2,3321.1,3.05709787]
[1738356804798,0.219,3321.2,3321.1,0.04604787]
[1738356805039,3.22995,3321.2,3321.1,0.04604787]
[1738356805251,3.53083,3321.2,3320.5,3.01151]
[1738356805545,0.7881,3320.9,3320.3,3.01174]
[1738356805851,3.86293883,3321.8,3320.6,0.7539]
[1738356805852,1.0364,3321.7,3320.6,0.7539]
[1738356806004,1.0364,3321.7,3321.2,3.01095]
[1738356806199,1.0364,3321.7,3320.6,3.01144]
[1738356806200,3.01088,3321.3,3320.6,3.01144]
[1738356806402,3.01086,3321.4,3320.8,3.01129]
[1738356806745,3.01074,3321.5,3320.8,3.0113]
[1738356807039,4.04695,3321.7,3320.2,3.01186]
[1738356807040,1.0364,3321.7,3321.2,3.01094]
[1738356807240,4.04692,3321.7,3321.0,3.01106]
[1738356807444,4.04692,3321.7,3320.3,0.7925]
[1738356807445,3.01069,3321.5,3320.3,0.7925]
[1738356807659,3.01135,3320.8,3320.0,3.01203]
[1738356807955,3.79546,3321.0,3320.2,3.01184]
[1738356808251,3.79546,3321.0,3320.4,3.01161]
[1738356808252,0.7843,3321.0,3320.4,3.01161]
[1738356808404,0.7843,3321.0,3319.5,0.8194]
[1738356808604,4.175014,3321.0,3320.3,3.01171]
[1738356808849,4.175014,3321.0,3320.4,3.01167]
[1738356809050,4.20565692,3321.0,3320.3,3.01171]
[1738356809247,4.20565692,3321.0,3320.4,3.0116]
[1738356809248,1.163834,3321.0,3320.4,3.0116]
[1738356809555,0.7843,3321.0,3320.0,3.0]
[1738356809843,0.7697,3321.5,3321.4,3.01077]
[1738356810044,0.7697,3321.5,3321.2,3.01089]
[1738356810352,0.7697,3321.5,3320.2,6.02684]
[1738356810353,0.22,3322.0,3320.9,0.7769]
[1738356810510,0.22,3322.0,3321.9,3.01032]
[1738356810704,0.22,3322.0,3321.7,3.01048]
[1738356810903,0.22,3322.0,3321.9,3.01032]
[1738356811614,0.22,3322.0,3320.9,0.7769]
[1738356811615,0.22,3322.0,3321.5,3.01061]
[1738356811816,0.7522,3322.2,3321.9,3.01032]
[1738356812020,0.7655,3322.9,3321.9,3.0]
[1738356812323,0.03064292,3322.8,3322.5,3.00972]
[1738356812542,0.03064292,3322.8,3321.7,0.8106]
[1738356812543,0.8246,3322.9,3322.6,0.04543557]
[1738356812830,3.00985,3322.5,3321.8,3.01035]
[1738356813201,3.00985,3322.5,3321.9,0.04159319]
[1738356813202,3.01018,3322.1,3321.9,0.04159319]
[1738356813351,0.8246,3322.2,3321.9,0.04159319]
[1738356813552,3.83467,3322.2,3321.9,0.04159319]
[1738356813754,0.03064292,3322.1,3321.1,0.8272]
[1738356813960,3.01042,3321.8,3321.0,3.0111]
[1738356814266,3.311562,3321.7,3321.0,3.01105]
[1738356814410,0.03064292,3321.6,3321.1,3.01103]
[1738356814612,0.301042,3321.7,3321.2,3.01095]
[1738356814938,3.0101,3322.2,3321.3,3.01085]
[1738356815139,0.81104292,3322.1,3319.8,0.8091]
[1738356815308,3.01044,3321.8,3319.9,0.55]
[1738356815509,0.03064292,3321.7,3321.1,3.01099]
[1738356815709,3.01041,3321.8,3321.1,3.01099]
[1738356815951,3.01041,3321.8,3321.1,3.01098]
[1738356815952,3.612474,3321.8,3321.1,3.01098]
[1738356816110,0.602064,3321.8,3321.1,3.01098]
[1738356816311,3.01041,3321.8,3321.1,3.01098]
[1738356816511,3.01041,3321.8,3321.2,3.01095]
[1738356818250,3.01093,3321.3,3320.6,3.01144]
[1738356818462,0.22,3321.2,3320.6,3.01144]
[1738356818613,3.83602,3321.1,3320.4,3.01164]
[1738356818808,0.8249,3321.1,3319.8,3.01219]
[1738356819013,0.54615729,3321.2,3320.9,3.01118]
[1738356819014,0.22,3321.2,3320.9,3.01118]
[1738356819227,0.8249,3321.5,3321.1,3.01099]
[1738356819635,0.8249,3321.5,3321.2,3.01092]
[1738356819804,0.8249,3321.5,3321.4,3.01077]
[1738356820022,0.8249,3321.5,3320.2,3.01177]
[1738356820023,3.01091,3321.3,3320.6,3.01147]
[1738356820339,0.301091,3321.2,3320.8,3.01126]
[1738356820510,3.83563,3321.5,3320.8,3.01126]
[1738356820746,0.8249,3321.5,3320.8,3.01126]
[1738356820950,0.8249,3321.5,3321.0,3.01111]
[1738356821150,0.8249,3321.5,3321.1,3.01099]
[1738356822489,0.22,3321.7,3321.2,3.01094]
[1738356822807,0.9789,3321.9,3321.5,3.01065]
[1738356822945,0.9789,3321.9,3321.2,0.602193]
[1738356822946,0.22,3321.9,3321.2,0.602193]
[1738356823149,0.03064292,3321.8,3321.6,3.01058]
[1738356823379,0.03064292,3321.8,3321.3,3.01086]
[1738356823380,3.23033,3321.9,3321.3,3.01086]
[1738356823694,0.22,3321.9,3321.5,3.01065]
[1738356824276,0.22,3321.9,3321.6,3.01053]
[1738356824493,0.22,3321.9,3321.5,6.02125]
[1738356824689,0.22,3321.9,3321.5,3.0106]
[1738356824904,0.22,3321.9,3321.6,3.01057]
[1738356825204,0.22,3322.0,3321.6,3.01057]
[1738356825359,0.22,3322.0,3321.3,3.01082]
[1738356825360,0.22,3322.0,3321.2,3.0]
[1738356825566,0.22,3322.0,3321.9,3.01032]
[1738356827078,0.22,3322.0,3321.9,3.06011133]
[1738356827867,3.00978,3322.5,3321.9,3.06011133]
[1738356828067,3.22878,3322.5,3321.9,3.06011133]
[1738356828269,0.219,3322.5,3322.0,3.01018]
[1738356828482,2.217472,3322.6,3322.3,3.00989]
[1738356828717,1.424972,3322.6,3322.3,3.00989]
[1738356829021,1.204972,3322.6,3322.3,3.05918045]
[1738356829184,0.22,3322.8,3322.3,3.05918045]
[1738356829513,0.22,3322.8,3322.3,3.05917045]
[1738356829669,0.22,3322.8,3322.5,3.00971]
[1738356830071,0.25064292,3322.8,3322.1,3.01012]
[1738356830308,0.22,3322.8,3322.4,3.00986]
[1738356830514,0.22,3322.8,3322.5,3.00976]
[1738356830714,0.621328,3322.8,3322.5,3.00976]
[1738356830925,0.621328,3322.8,3322.3,3.0099]
[1738356831186,0.621328,3322.8,3322.5,3.00978]
[1738356831486,0.621328,3322.8,3322.4,3.00981]
[1738356831719,0.621328,3322.8,3322.5,3.00976]
[1738356832060,0.621328,3322.8,3322.2,6.01998]
[1738356832182,3.00985,3322.5,3321.8,3.01035]
[1738356832385,3.78471,3322.3,3321.9,0.04979133]
[1738356832632,3.04069292,3322.2,3321.7,3.0105]
[1738356832784,0.7747,3322.3,3321.7,3.0105]
[1738356833130,0.7747,3322.3,3321.8,0.0562903]
[1738356833429,4.16619829,3322.3,3321.8,3.01032]
[1738356833613,0.7747,3322.3,3321.9,3.01032]
[1738356833931,3.84061,3322.7,3322.1,3.01005]
[1738356834088,0.831,3322.7,3322.3,3.0099]
[1738356834285,0.03064292,3322.6,3322.3,3.0099]
[1738356834529,0.831,3322.7,3322.4,3.00985]
[1738356834887,0.620328,3322.8,3322.5,3.00975]
[1738356835229,0.219,3322.8,3322.5,3.00975]
[1738356835636,0.219,3322.8,3322.6,3.00963]
[1738356835847,0.7739,3323.0,3322.6,3.00963]
[1738356835999,0.9929,3323.0,3322.4,6.01963]
[1738356836300,0.9929,3323.0,3322.1,0.8246]
[1738356836301,0.9929,3323.0,3322.5,3.00976]
[1738356836496,0.40022,3322.9,3322.5,3.00976]
[1738356836695,4.00224,3323.0,3322.5,3.00976]
[1738356836878,0.03064292,3322.9,3322.5,3.00976]
[1738356837284,4.00224,3323.0,3322.5,3.00976]
[1738356837983,4.00224,3323.0,3322.1,0.8246]
[1738356837984,0.9998,3323.3,3322.9,3.00934]
[1738356838184,0.219,3323.3,3323.0,3.00925]
[1738356838599,3.78963,3323.6,3323.0,3.00925]
[1738356838933,0.7808,3323.6,3323.5,3.00887]
[1738356839240,0.219,3323.9,3323.6,3.00872]
[1738356839398,0.219,3323.9,3323.5,3.00879]
[1738356839585,0.219,3323.9,3323.5,6.01759]
[1738356839789,0.9946,3324.2,3323.1,0.03009]
[1738356840004,0.9751,3324.2,3323.8,3.0086]
[1738356840298,0.9751,3324.2,3322.9,0.7509]
[1738356840299,0.03064292,3324.1,3322.9,0.7509]
[1738356840517,3.03904292,3324.1,3323.0,6.01864]
[1738356840697,0.03064292,3324.1,3322.9,0.7509]
[1738356840899,0.219,3324.2,3323.9,3.00846]
[1738356841231,0.219,3324.2,3323.1,3.55317773]
[1738356841232,0.219,3324.2,3324.1,3.00833]
[1738356841432,0.219,3324.2,3323.1,3.55317773]
[1738356841433,0.7799,3325.0,3323.7,0.8312]
[1738356841633,0.219,3324.8,3323.7,0.8312]
[1738356841932,3.25734292,3324.8,3324.2,3.00822]
[1738356842128,3.00794,3324.6,3324.0,3.0084]
[1738356842636,3.2267,3324.8,3324.1,3.00831]
[1738356842800,3.2267,3324.8,3324.2,3.00823]
[1738356843003,0.219,3324.8,3324.2,3.00823]
[1738356843206,0.219,3324.8,3323.7,0.8312]
[1738356843207,0.219,3324.8,3324.6,3.00787]
[1738356843620,0.219,3324.8,3324.4,3.00803]
[1738356843802,0.219,3324.8,3324.6,3.00781]
[1738356844003,0.219,3324.8,3324.6,3.00787]
[1738356844208,3.00788,3324.6,3324.0,3.00839]
[1738356844408,0.30385229,3324.5,3324.2,3.0082]
[1738356844612,3.00788,3324.6,3324.0,3.00839]
[1738356845849,3.2267,3324.8,3324.0,3.00839]
[1738356846351,3.00794,3324.6,3324.0,3.00839]
[1738356847458,0.7799,3325.0,3323.7,0.8312]
[1738356847762,3.22641,3325.2,3324.6,3.00786]
[1738356848130,0.7508,3325.4,3325.0,3.0075]
[1738356848336,3.0069,3325.7,3325.0,3.0075]
[1738356848337,0.219,3325.5,3325.0,3.0075]
[1738356848519,0.219,3325.5,3325.1,3.0074]
[1738356848723,3.22606,3325.5,3324.9,3.00754]
[1738356848922,0.219,3325.5,3325.0,3.00751]
[1738356849161,0.219,3325.5,3325.1,3.00742]
[1738356849364,0.219,3325.5,3325.0,3.00745]
[1738356849568,0.219,3325.5,3325.1,3.00742]
[1738356849869,3.00697,3325.6,3324.9,3.00757]
[1738356850070,0.03064292,3325.5,3324.9,3.00757]
[1738356850274,3.00794,3324.6,3324.4,0.8319]
[1738356850424,3.00794,3324.6,3323.5,3.56067773]
[1738356850425,0.8023,3325.0,3323.2,0.7559]
[1738356850623,3.81051,3324.3,3323.4,3.00893]
[1738356850820,3.00867,3323.8,3323.2,3.76503]
[1738356851037,0.24964292,3324.2,3323.0,3.00931]
[1738356851038,3.03939292,3323.7,3323.0,3.00931]
[1738356851370,3.03939292,3323.7,3322.8,3.77088]
[1738356851371,3.00892,3323.5,3322.8,0.7614]
[1738356851571,0.03064292,3323.4,3322.8,3.0095]
[1738356851738,3.77522,3323.5,3322.8,3.0095]
[1738356852068,3.00892,3323.5,3322.9,3.00934]
[1738356852271,3.00872,3323.7,3323.1,3.00919]
[1738356852425,0.8074,3323.8,3323.2,3.00905]
[1738356852970,0.8074,3323.8,3323.0,3.00926]
[1738356853271,0.219,3323.7,3323.4,3.00895]
[1738356853571,0.219,3323.7,3323.3,3.009]
[1738356853772,0.219,3323.7,3323.1,3.00915]
[1738356854070,3.80236,3323.3,3322.5,3.77111]
[1738356854229,0.03064292,3323.2,3322.6,3.0]
[1738356854428,3.03979292,3323.2,3322.6,3.00964]
[1738356854629,3.03979292,3323.2,3322.5,0.7614]
[1738356854630,3.00938,3323.0,3322.5,3.7614]
[1738356854842,3.00938,3323.0,3322.5,3.0]
[1738356855258,3.00914,3323.2,3322.6,3.00968]
[1738356855457,3.00945,3322.9,3322.3,3.00995]
[1738356855660,3.00945,3322.9,3322.4,3.0]
[1738356855832,0.34767741,3323.2,3322.1,0.8082]
[1738356856177,3.80237,3323.3,3322.6,3.00967]
[1738356856677,0.7933,3323.3,3322.9,3.00937]
[1738356856829,0.03064292,3323.2,3322.1,3.8082]
[1738356857037,0.8086,3323.4,3322.1,0.8082]
[1738356857228,3.81758,3323.4,3322.6,3.00966]
[1738356857426,0.219,3323.7,3322.1,0.8082]
[1738356857427,3.80301,3323.8,3323.0,3.00925]
[1738356857632,0.219,3323.7,3323.1,3.00918]
[1738356858175,3.25833292,3323.7,3323.1,3.00918]
[1738356858418,0.24964292,3323.7,3322.9,3.00941]
[1738356858534,3.0088,3323.6,3322.7,3.00956]
[1738356858931,3.0088,3323.6,3322.9,3.0094]
[1738356859161,3.00893,3323.5,3322.9,3.0094]
[1738356859669,3.00881,3323.6,3323.0,3.00929]
[1738356859975,3.22769,3323.7,3323.0,3.00929]
[1738356860469,3.00878,3323.6,3322.9,3.0094]
[1738356860854,0.03064292,3323.5,3322.9,3.0094]
[1738356861069,3.00878,3323.6,3322.9,3.0094]
[1738356861381,3.00878,3323.6,3323.0,3.0093]
[1738356861683,0.03064292,3323.5,3322.5,3.83714]
[1738356861858,3.00906,3323.3,3322.8,3.00949]
[1738356862293,4.39392065,3323.2,3321.9,0.8092]
[1738356862590,3.00996,3322.3,3321.4,3.0107]
[1738356862784,0.24964292,3322.2,3321.5,0.30107]
[1738356862994,0.219,3322.4,3322.1,3.01008]
[1738356863144,3.81942,3323.0,3322.4,3.00985]
[1738356863344,3.22844,3322.9,3322.3,3.00995]
[1738356863640,3.00952,3322.8,3322.2,3.01005]
[1738356864258,3.04016292,3322.8,3322.2,3.01005]
[1738356864585,3.0097,3322.6,3322.0,3.01023]
[1738356864885,3.00991,3322.4,3321.8,3.01034]
[1738356865094,3.01005,3322.2,3321.6,6.81976]
[1738356865390,3.01022,3322.1,3321.6,3.0]
[1738356865543,0.7974,3322.2,3321.6,3.0]
[1738356865753,0.7974,3322.2,3321.6,6.01055]
[1738356866195,3.80746,3322.2,3321.6,6.01055]
[1738356866525,0.7974,3322.2,3321.7,3.0105]
[1738356866726,6.0193,3322.7,3321.7,1.778105]
[1738356866874,0.7853,3322.6,3321.8,3.06680051]
[1738356867075,0.7853,3322.6,3322.1,3.01008]
[1738356867330,4.02757,3322.9,3322.2,3.00999]
[1738356867633,3.00951,3322.8,3322.2,3.00999]
[1738356867790,1.0181,3322.9,3322.2,3.00999]
[1738356868122,3.00969,3322.6,3322.0,3.01019]
[1738356868280,3.00951,3322.8,3322.1,3.01007]
[1738356868479,3.00951,3322.8,3322.1,6.02014]
[1738356868674,1.0181,3322.9,3322.3,3.00994]
[1738356868888,3.00964,3322.7,3322.1,3.01007]
[1738356869094,3.04028292,3322.7,3322.1,3.01007]
[1738356869324,3.00987,3322.4,3321.7,3.01046]
[1738356869525,0.8316,3322.5,3321.3,3.82872]
[1738356869749,3.01034,3321.9,3321.8,0.05639051]
[1738356869954,3.01034,3321.9,3321.0,0.8179]
[1738356869955,0.03064292,3321.9,3321.0,3.8179]
[1738356870162,3.01011,3322.2,3321.8,0.05639051]
[1738356870463,3.01012,3322.2,3321.2,3.0]
[1738356870605,3.01012,3322.2,3321.8,0.05639051]
[1738356870807,0.03064292,3322.1,3321.8,0.05639051]
[1738356871047,3.01012,3322.2,3321.8,0.05639051]
[1738356871257,3.01012,3322.2,3321.8,0.85139051]
[1738356871555,0.24964292,3322.4,3321.8,0.05639051]
[1738356871705,3.00997,3322.3,3321.8,0.05639051]
[1738356871902,0.219,3322.4,3321.8,3.01034]
[1738356872206,3.04061292,3322.3,3321.8,0.05639051]
[1738356872402,3.0101,3322.2,3321.8,0.05639051]
[1738356873053,3.36365292,3322.2,3321.8,0.05639051]
[1738356873235,3.36365292,3322.2,3321.4,3.01071]
[1738356873472,3.36365292,3322.2,3321.2,3.01095]
[1738356873473,3.0103,3322.0,3321.2,3.01095]
[1738356873648,0.03064292,3321.9,3320.5,0.8321]
[1738356873821,3.01068,3321.6,3321.3,0.04996801]
[1738356874149,3.01077,3321.4,3320.7,6.02269]
[1738356874465,0.755,3321.4,3320.9,3.01117]
[1738356874620,3.76579,3321.4,3320.9,3.01117]
[1738356874809,0.755,3321.4,3320.9,3.01117]
[1738356875014,0.755,3321.4,3321.0,0.05034389]
[1738356875214,0.755,3321.4,3321.0,3.06146389]
[1738356875446,0.755,3321.4,3321.0,0.05034389]
[1738356876152,3.01092,3321.3,3321.0,0.05034389]
[1738356876559,3.01106,3321.1,3320.3,3.0117]
[1738356876759,3.04183292,3321.0,3320.4,3.01162]
[1738356877294,3.04183292,3321.0,3319.4,0.806]
[1738356877295,3.01202,3320.1,3319.4,0.806]
[1738356877579,0.7852,3320.0,3319.1,0.9707821]
[1738356877782,0.7852,3320.0,3319.2,3.41104821]
[1738356878070,0.7852,3320.0,3319.5,3.01248]
[1738356878769,0.224,3320.1,3319.4,3.58330272]
[1738356878987,0.224,3320.1,3319.8,3.01219]
[1738356879140,0.224,3320.1,3319.8,0.602454]
[1738356879340,0.224,3320.1,3319.7,3.01225]
[1738356879544,0.8226,3320.6,3319.9,3.01212]
[1738356879875,0.224,3320.5,3319.9,3.01212]
[1738356880231,0.03064292,3320.4,3319.5,3.01243]
[1738356880431,0.7614,3321.0,3319.9,3.0]
[1738356880635,0.7614,3321.0,3320.0,0.65531777]
[1738356880636,0.79204292,3321.0,3320.0,0.65531777]
[1738356880865,3.01146,3320.7,3319.9,6.01207]
[1738356881067,0.225,3320.7,3320.0,3.01202]
[1738356881265,3.23648,3320.7,3319.9,6.01207]
[1738356881470,3.23648,3320.7,3320.1,3.0119]
[1738356881471,0.225,3320.7,3320.1,3.0119]
[1738356881782,0.225,3320.7,3320.2,3.01185]
[1738356881966,0.03064292,3320.6,3320.0,3.01204]
[1738356882170,0.7921,3320.5,3319.6,3.01238]
[1738356882381,3.01203,3320.1,3319.4,3.01252]
[1738356882559,3.01203,3320.1,3319.7,0.04944561]
[1738356882760,3.01204,3320.0,3319.4,3.01252]
[1738356882954,3.01204,3320.0,3319.8,0.04384019]
[1738356883150,3.01204,3320.0,3319.4,3.01252]
[1738356883365,3.614349,3320.1,3319.8,0.04384019]
[1738356883572,3.01196,3320.1,3319.5,3.01248]
[1738356883783,3.01196,3320.1,3319.8,0.04932021]
[1738356884298,3.01196,3320.1,3319.5,3.01248]
[1738356884501,3.01196,3320.1,3319.8,0.04932021]
[1738356884804,3.614335,3320.1,3319.2,3.01277]
[1738356885012,3.01206,3320.0,3319.8,0.04932021]
[1738356885189,3.614335,3320.1,3319.4,3.0125]
[1738356885393,3.01212,3320.0,3319.8,0.04932021]
[1738356885596,3.01212,3320.0,3319.4,3.0125]
[1738356885794,3.614335,3320.1,3319.8,0.04932021]
[1738356886012,3.614335,3320.1,3319.2,3.01276]
[1738356886166,3.01265,3319.4,3319.1,0.1647821]
[1738356886360,3.01243,3319.6,3319.1,0.1647821]
[1738356886616,3.01252,3319.5,3319.1,0.1647821]
[1738356886794,3.01223,3319.8,3319.1,3.1776421]
[1738356886999,3.01258,3319.5,3319.1,0.1647821]
[1738356887195,3.01264,3319.4,3319.2,0.04450908]
[1738356887399,3.01224,3319.8,3319.2,0.04450908]
[1738356887561,0.7649,3319.9,3319.4,3.01253]
[1738356887909,0.224,3319.8,3319.5,0.04514099]
[1738356888116,0.224,3319.8,3319.5,3.05756099]
[1738356889271,0.7691,3320.3,3320.0,3.01198]
[1738356889472,6.79272,3320.3,3319.6,3.0583351]
[1738356889768,3.01221,3319.9,3319.6,0.0459351]
[1738356890000,3.313361,3319.9,3319.6,0.0459351]
[1738356890206,3.01214,3319.9,3319.5,0.0304]
[1738356890403,0.224,3320.1,3319.7,0.04581929]
[1738356890717,0.224,3320.2,3319.7,3.01231]
[1738356890934,0.25464292,3320.2,3319.8,0.04562112]
[1738356891231,0.25464292,3320.2,3319.5,3.04286]
[1738356891232,3.01201,3320.1,3319.5,3.04286]
[1738356891529,3.01201,3320.1,3319.6,3.01239]
[1738356891815,0.224,3320.2,3319.6,3.05823839]
[1738356892023,0.224,3320.2,3319.7,3.01231]
[1738356892171,0.9931,3320.3,3319.9,3.01211]
[1738356892576,0.224,3320.3,3320.0,0.0452313]
[1738356892786,0.224,3320.3,3320.0,3.0572713]
[1738356893091,0.224,3320.3,3320.0,0.0452313]
[1738356893721,0.8226,3320.6,3320.1,3.01189]
[1738356893926,4.05712,3320.6,3320.0,0.30574313]
[1738356894078,4.05712,3320.6,3319.7,0.76]
[1738356894079,1.0456,3320.6,3320.1,0.04502448]
[1738356894404,3.01168,3320.4,3319.8,3.01214]
[1738356894574,3.01168,3320.4,3320.2,0.04491304]
[1738356894775,3.01168,3320.4,3319.9,3.01212]
[1738356894975,3.01168,3320.4,3320.3,0.04032145]
[1738356895207,3.718559,3320.4,3319.7,3.01225]
[1738356895389,3.718559,3320.4,3320.3,0.04032145]
[1738356895390,3.01168,3320.4,3320.3,0.04032145]
[1738356895588,0.03064292,3320.4,3319.5,0.0304]
[1738356895773,3.01231,3319.8,3319.5,0.0304]
[1738356896216,3.01207,3320.0,3319.5,0.0304]
[1738356896725,0.223,3320.2,3319.5,0.0304]
[1738356896879,0.223,3320.2,3319.7,3.01224]
[1738356897074,3.2349,3320.2,3319.6,3.01237]
[1738356897274,3.26554292,3320.2,3319.6,3.01237]
[1738356897480,3.2349,3320.2,3319.7,3.01231]
[1738356897810,3.937173,3320.2,3319.5,0.0304]
[1738356897981,0.7762,3320.3,3319.5,0.0304]
[1738356898177,3.01162,3320.5,3319.8,3.01217]
[1738356898504,3.01232,3319.7,3319.5,0.0304]
[1738356898705,3.01215,3319.9,3319.5,0.0304]
[1738356898913,3.01206,3320.0,3319.5,3.04289]
[1738356899211,3.01203,3320.1,3319.5,3.04289]
[1738356899604,6.02406,3320.1,3319.5,3.04289]
[1738356899829,3.01203,3320.1,3319.5,3.04289]
[1738356900285,0.03064292,3320.1,3319.5,0.0304]
[1738356900485,3.01232,3319.7,3319.5,0.0304]
[1738356900698,3.01224,3319.8,3319.5,0.0304]
[1738356900937,0.223,3320.0,3319.5,0.0304]
[1738356901231,3.01228,3319.8,3319.5,0.0304]
[1738356901406,3.01241,3319.6,3319.5,0.0304]
[1738356901741,3.78791,3319.6,3319.5,0.07153953]
[1738356901909,3.78791,3319.6,3319.5,0.0304]
[1738356902236,3.78791,3319.6,3319.5,0.07161367]
[1738356902441,3.78791,3319.6,3319.5,0.0304]
[1738356902735,4.50334609,3319.6,3319.5,0.0304]
[1738356902942,0.223,3320.0,3319.5,0.0304]
[1738356903093,3.01225,3319.8,3319.5,0.0304]
[1738356903291,3.01241,3319.6,3319.5,0.0304]
[1738356903495,3.01226,3319.8,3319.5,0.0304]
[1738356904236,3.01241,3319.6,3319.5,0.0304]
[1738356905839,1.045,3320.1,3319.5,0.0304]
[1738356906060,1.07564292,3320.1,3319.5,3.04284]
[1738356906339,4.05696,3320.1,3319.5,3.04284]
[1738356906998,3.01204,3320.0,3319.5,0.0304]
[1738356907200,3.01221,3319.9,3319.5,0.0304]
[1738356907407,1.045,3320.1,3319.5,0.0304]
[1738356907613,3.01237,3319.7,3319.5,0.0304]
[1738356907894,3.04301292,3319.7,3319.5,0.0304]
[1738356908212,3.01237,3319.7,3319.5,0.0304]
[1738356908840,3.81801,3319.6,3319.5,0.0304]
[1738356909045,3.84865292,3319.6,3319.5,0.0304]
[1738356909337,3.81837,3319.2,3319.1,0.1647821]
[1738356909491,3.84901292,3319.2,3319.1,0.1647821]
[1738356909699,4.53518121,3319.2,3319.1,0.1647821]
[1738356910509,4.50453829,3319.2,3319.1,0.1647821]
[1738356911166,3.01422,3317.6,3317.1,3.56312066]
[1738356911494,0.565,3319.1,3317.3,3.01443]
[1738356911495,3.0138,3318.1,3317.3,3.01443]
[1738356911693,3.01378,3318.1,3317.2,0.7688]
[1738356911897,0.48092889,3319.0,3317.2,0.7688]
[1738356911898,3.01415,3317.7,3317.2,0.7688]
[1738356912100,3.01432,3317.5,3317.1,0.005]
[1738356912400,3.04496292,3317.5,3317.1,0.005]
[1738356912586,0.30449629,3317.4,3317.1,0.005]
[1738356912786,3.01449,3317.3,3317.1,0.005]
[1738356913095,3.80104,3317.7,3317.1,0.005]
[1738356913472,0.221,3317.6,3317.1,0.005]
[1738356913652,3.01438,3317.5,3317.1,0.005]
[1738356914178,0.221,3317.6,3317.1,0.005]
[1738356914355,3.23529,3317.6,3317.1,0.005]
[1738356914557,3.01446,3317.4,3317.1,0.005]
[1738356914753,3.01459,3317.2,3317.1,0.005]
[1738356915161,3.57959,3317.2,3317.1,0.005]
[1738356915474,4.36709,3317.2,3317.1,0.005]
[1738356915675,3.83273292,3317.2,3317.1,0.005]
[1738356915894,4.67489781,3317.2,3317.1,0.005]
[1738356916073,1.66030781,3317.2,3317.1,0.005]
[1738356916275,0.22,3317.2,3317.1,0.005]
[1738356916480,0.22,3317.4,3317.1,0.005]
[1738356916808,3.01406,3317.8,3317.1,0.005]
[1738356916809,0.22,3317.5,3317.2,3.01457]
[1738356916966,0.22,3317.5,3317.2,0.04105671]
[1738356917695,0.22,3317.5,3317.2,3.05563671]
[1738356917871,0.7563,3318.0,3317.3,3.01446]
[1738356918209,3.23395,3317.9,3317.3,3.01446]
[1738356918414,3.01408,3317.8,3317.2,0.79665671]
[1738356918711,3.23395,3317.9,3317.2,3.81120671]
[1738356918862,0.7563,3318.0,3317.2,3.81120671]
[1738356918863,3.01415,3317.7,3317.4,0.04085577]
[1738356919062,0.22,3317.6,3317.3,0.04550693]
[1738356919272,0.844828,3317.6,3317.5,0.04528368]
[1738356919473,0.844828,3317.6,3317.4,0.0453953]
[1738356919694,0.844828,3317.6,3317.5,0.04528368]
[1738356919875,0.844828,3317.6,3317.1,3.01967]
[1738356920181,0.844828,3317.6,3317.2,0.04561856]
[1738356920407,3.01441,3317.4,3317.2,0.04561856]
[1738356920978,0.03064292,3317.3,3317.2,0.04561856]
[1738356921309,3.01441,3317.4,3317.2,0.04561856]
[1738356921511,3.01449,3317.3,3317.2,0.04561856]
[1738356921699,3.81313292,3317.3,3317.2,0.04561856]